bitfinex-derivatives/quotes_SOLF0:USTF0_20250527
["timestamp","ask_amount","ask_price","bid_price","bid_amount"]
[1748329564447,5.7496,173.87,173.85,0.0384947]
[1748329564746,0.04301768,173.88,173.85,0.0384947]
[1748329565139,5.7499,173.86,173.85,0.0384947]
[1748329566538,5.7497,173.87,173.85,0.0384947]
[1748329566743,0.04301768,173.88,173.85,0.0384947]
[1748329567543,5.79261768,173.88,173.85,5.7886947]
[1748329569441,0.04301768,173.88,173.87,5.7496]
[1748329573241,0.04301768,173.88,173.87,7.7653]
[1748329583849,1.9942,173.97,173.87,2.0157]
[1748329584150,145.7047,174.03,173.87,2.0157]
[1748329584340,5.7472,173.95,173.87,2.0157]
[1748329584541,5.18240321,174.01,173.88,132.26]
[1748329584853,5.7481,173.92,173.88,132.26]
[1748329585051,5.7481,173.92,173.89,5.7488]
[1748329585250,5.79012483,173.92,173.89,5.7488]
[1748329585453,0.04202483,173.92,173.89,5.7488]
[1748329585752,0.04202483,173.92,173.9,5.7484]
[1748329587858,0.04202483,173.92,173.88,132.30295983]
[1748329588251,5.7487,173.9,173.88,132.30295983]
[1748329590157,5.7484,173.91,173.88,132.30295983]
[1748329590954,5.7484,173.91,173.88,138.05215983]
[1748329592565,5.7487,173.9,173.88,132.30295983]
[1748329593057,0.04202483,173.92,173.88,132.30295983]
[1748329593762,5.79022483,173.92,173.89,5.7487]
[1748329595565,5.79022483,173.92,173.9,5.7485]
[1748329595764,0.04202483,173.92,173.88,132.30295983]
[1748329596261,0.04202483,173.92,173.91,5.7483]
[1748329597163,2.483e-05,173.92,173.91,5.7483]
[1748329598566,7.7274,174.01,173.98,5.7459]
[1748329598959,5.7444,174.03,173.95,132.24]
[1748329599161,134.2548,174.06,173.95,132.24]
[1748329599663,0.04228215,174.02,173.99,0.03951831]
[1748329599969,0.04228215,174.02,174.01,5.7448]
[1748329605176,5.7409,174.18,174.09,5.7423]
[1748329605673,12.87256833,174.16,174.09,5.7423]
[1748329605863,12.87256833,174.16,174.1,5.742]
[1748329606066,0.04384492,174.15,174.11,0.03886702]
[1748329606573,0.04384492,174.15,174.11,5.78046702]
[1748329607472,0.04384492,174.15,174.11,0.03886702]
[1748329609777,0.04384492,174.15,174.11,5.78046702]
[1748329611274,5.78424492,174.15,174.11,5.78046702]
[1748329614668,0.04384492,174.15,174.11,0.03886702]
[1748329615173,5.7413,174.12,174.11,0.03886702]
[1748329616870,5.7411,174.13,174.11,0.03886702]
[1748329617174,0.04384492,174.15,174.11,0.03886702]
[1748329617578,5.7413,174.13,174.11,0.03886702]
[1748329617977,5.7413,174.12,174.11,0.03886702]
[1748329619275,5.7427,174.08,174.07,131.48]
[1748329619572,5.7427,174.08,173.97,2.039]
[1748329619573,1.9268,174.11,174.03,131.48]
[1748329619774,5.7436,174.06,174.03,131.48]
[1748329620275,5.7436,174.06,174.03,137.2241]
[1748329620473,5.78368517,174.06,174.03,137.26596042]
[1748329620676,0.04008517,174.06,174.03,137.26596042]
[1748329621282,0.04008517,174.06,174.04,5.7439]
[1748329621475,0.04008517,174.06,174.03,131.52186042]
[1748329621880,0.04008517,174.06,174.03,137.26596042]
[1748329622075,0.04008517,174.06,174.03,131.52186042]
[1748329622584,0.04008517,174.06,174.03,137.26586042]
[1748329622781,5.7439,174.05,174.03,131.52186042]
[1748329622982,5.7439,174.05,174.03,0.04186042]
[1748329623880,5.744,174.04,174.03,0.04186042]
[1748329624179,0.04008517,174.06,174.03,0.04186042]
[1748329624480,5.78338517,174.06,174.03,0.04186042]
[1748329624980,5.78338517,174.06,174.03,5.78606042]
[1748329625883,0.04008517,174.06,174.04,5.744]
[1748329626184,0.04008517,174.06,174.03,0.04186042]
[1748329626878,0.04008517,174.06,174.03,5.78586042]
[1748329627581,0.04008517,174.06,174.04,5.7438]
[1748329628079,0.04008517,174.06,174.03,0.04186042]
[1748329628779,0.04008517,174.06,174.04,5.7437]
[1748329628975,0.04008517,174.06,174.04,131.5]
[1748329629181,0.04008517,174.06,174.05,5.7437]
[1748329633390,8.517e-05,174.06,174.05,5.7437]
[1748329633582,5.7403,174.16,174.05,9.27500321]
[1748329633783,137.4766,174.21,174.05,9.27500321]
[1748329633982,137.4766,174.21,174.11,5.7416]
[1748329634387,142.65900321,174.21,174.11,5.7416]
[1748329634691,0.03992082,174.18,174.14,0.04131197]
[1748329635098,5.7404,174.15,174.14,0.04131197]
[1748329644995,8.30153196,174.15,174.14,0.04131197]
[1748329647100,8.30266302,174.15,174.14,0.04131197]
[1748329647394,10.20486302,174.15,174.14,0.04131197]
[1748329648701,10.20622978,174.15,174.14,0.04131197]
[1748329651293,8.30402978,174.15,174.14,0.04131197]
[1748329651601,5.7404,174.15,174.14,0.04131197]
[1748329653998,5.7398,174.17,174.14,5.78191197]
[1748329654203,0.03992082,174.18,174.14,0.04131197]
[1748329655105,0.03992082,174.18,174.16,5.7399]
[1748329655794,0.03992082,174.18,174.17,5.7397]
[1748329657397,0.03992082,174.18,174.14,0.04131197]
[1748329658102,0.03992082,174.18,174.16,5.7398]
[1748329658303,0.03992082,174.18,174.14,0.04131197]
[1748329659006,0.03992082,174.18,174.15,109.06]
[1748329660204,0.03992082,174.18,174.16,5.7397]
[1748329660696,0.03992082,174.18,174.15,109.06]
[1748329661405,0.03992082,174.18,174.17,5.7397]
[1748329662717,0.03992082,174.18,174.15,109.06]
[1748329662900,0.03992082,174.18,174.14,0.04131197]
[1748329663502,5.7399,174.17,174.14,0.04131197]
[1748329664610,5.7401,174.16,174.14,0.04131197]
[1748329666104,5.7398,174.17,174.14,0.04131197]
[1748329666611,5.7404,174.15,174.14,0.04131197]
[1748329672221,5.74,174.16,174.14,0.04131197]
[1748329672621,0.03992082,174.18,174.14,0.04131197]
[1748329672921,5.7404,174.15,174.14,0.04131197]
[1748329673822,0.03992082,174.18,174.14,0.04131197]
[1748329674023,2.56432556,174.17,174.14,0.04131197]
[1748329674221,0.03992082,174.18,174.14,0.04131197]
[1748329674222,2.56432556,174.16,174.14,0.04131197]
[1748329674423,0.03992082,174.18,174.14,0.04131197]
[1748329674618,2.56436029,174.17,174.14,0.04131197]
[1748329674825,2.56468652,174.16,174.14,0.04131197]
[1748329675022,0.03992082,174.18,174.14,0.04131197]
[1748329675218,2.56474712,174.17,174.14,0.04131197]
[1748329675416,5.7404,174.15,174.14,0.04131197]
[1748329680329,8.3060049,174.15,174.14,0.04131197]
[1748329682735,5.7404,174.15,174.14,0.04131197]
[1748329683136,8.30682711,174.15,174.14,0.04131197]
[1748329684637,8.30652281,174.15,174.14,0.04131197]
[1748329688741,8.30379613,174.15,174.14,0.04131197]
[1748329689543,2.56339613,174.15,174.14,0.04131197]
[1748329689739,5.74,174.16,174.14,0.04131197]
[1748329692144,5.7397,174.17,174.14,5.78191197]
[1748329692841,5.7397,174.17,174.14,0.04131197]
[1748329693749,5.7401,174.16,174.14,0.04131197]
[1748329693950,0.03992082,174.18,174.14,0.04131197]
[1748329694141,5.7404,174.15,174.14,0.04131197]
[1748329694343,8.30716496,174.15,174.14,0.04131197]
[1748329695153,8.30666404,174.15,174.14,0.04131197]
[1748329696947,8.30940155,174.15,174.14,0.04131197]
[1748329698652,8.30924064,174.15,174.14,0.04131197]
[1748329700453,8.30895643,174.15,174.14,0.04131197]
[1748329705655,8.31234784,174.15,174.14,0.04131197]
[1748329707455,8.31373374,174.15,174.14,0.04131197]
[1748329713760,2.57333374,174.15,174.14,0.04131197]
[1748329714454,2.57758961,174.15,174.14,0.04131197]
[1748329715062,2.57758961,174.15,174.14,5.78201197]
[1748329715360,2.57758961,174.15,174.14,0.04131197]
[1748329716262,2.57751056,174.15,174.14,0.04131197]
[1748329716757,2.57751056,174.15,174.14,5.78201197]
[1748329716961,0.03992082,174.18,174.14,0.04131197]
[1748329717458,0.03992082,174.18,174.15,5.7403]
[1748329718166,5.77932082,174.18,174.15,5.7403]
[1748329718354,5.77932082,174.18,174.16,5.7399]
[1748329718355,0.03992082,174.18,174.16,5.7399]
[1748329719265,0.03992082,174.18,174.15,5.7402]
[1748329719863,5.77952082,174.18,174.15,5.7402]
[1748329722767,0.03992082,174.18,174.16,5.74]
[1748329723866,5.77932082,174.18,174.16,5.74]
[1748329724268,5.77932082,174.18,174.15,5.7402]
[1748329726767,0.03992082,174.18,174.16,5.74]
[1748329727671,0.03992082,174.18,174.17,5.7397]
[1748329729769,0.03992082,174.18,174.16,5.7399]
[1748329730972,0.03992082,174.18,174.17,5.7397]
[1748329731176,0.03992082,174.18,174.15,109.04]
[1748329731477,0.03992082,174.18,174.16,5.7398]
[1748329732370,0.03992082,174.18,174.17,5.7397]
[1748329740382,0.03992082,174.18,174.15,109.04]
[1748329740383,0.03992082,174.18,174.16,5.7399]
[1748329740780,10.69870249,174.32,174.16,5.74]
[1748329740976,10.69870249,174.32,174.21,5.14843424]
[1748329741173,10.69870249,174.32,174.23,5.14773357]
[1748329741377,10.69870249,174.32,174.24,135.6122]
[1748329741677,10.69870249,174.32,174.29,5.7357]
[1748329741878,0.03734092,174.31,174.29,5.7357]
[1748329742483,4.00366833,174.3,174.29,5.7357]
[1748329743289,0.03734092,174.31,174.28,0.03716172]
[1748329744684,5.7357,174.29,174.28,0.03716172]
[1748329750583,5.738,174.22,174.21,131.66]
[1748329750788,3.9299,174.3,174.21,240.62]
[1748329751383,3.9299,174.3,174.19,1.9568]
[1748329751578,0.03744947,174.26,174.23,0.0367723]
[1748329752686,5.7371,174.25,174.23,0.0367723]
[1748329753787,5.7374,174.24,174.23,0.0367723]
[1748329754588,5.7371,174.25,174.23,0.0367723]
[1748329755388,5.7374,174.24,174.23,0.0367723]
[1748329757085,5.7372,174.25,174.23,0.0367723]
[1748329757392,0.03744947,174.26,174.23,0.0367723]
[1748329758990,0.03744947,174.26,174.24,5.7372]
[1748329760588,0.03744947,174.26,174.25,5.7371]
[1748329764198,0.03744947,174.26,174.24,5.7373]
[1748329764699,5.77444947,174.26,174.23,0.0367723]
[1748329764898,0.03744947,174.26,174.23,0.0367723]
[1748329765198,5.7373,174.25,174.23,0.0367723]
[1748329767499,5.77424947,174.26,174.23,0.0367723]
[1748329767796,5.77424947,174.26,174.23,5.7743723]
[1748329767993,5.77424947,174.26,174.23,0.0367723]
[1748329768400,5.7371,174.25,174.23,0.0367723]
[1748329769099,5.7374,174.24,174.23,0.0367723]
[1748329769702,5.7371,174.25,174.23,0.0367723]
[1748329770500,0.03744947,174.26,174.23,0.0367723]
[1748329771697,5.7371,174.25,174.23,0.0367723]
[1748329772303,5.77424947,174.26,174.23,5.7744723]
[1748329772501,0.03744947,174.26,174.23,0.0367723]
[1748329773407,0.03744947,174.26,174.24,5.7374]
[1748329774406,0.03744947,174.26,174.23,0.0367723]
[1748329774705,5.77434947,174.26,174.23,5.7743723]
[1748329775905,0.03744947,174.26,174.24,5.7374]
[1748329776607,5.77424947,174.26,174.23,5.7743723]
[1748329778010,5.7373,174.25,174.23,0.0367723]
[1748329780310,5.7374,174.24,174.23,0.0367723]
[1748329781211,8.33869347,174.24,174.23,0.0367723]
[1748329781715,5.7387,174.2,174.17,137.2196]
[1748329781905,133.6121,174.27,174.17,131.48]
[1748329782111,5.14773357,174.25,174.16,0.79685011]
[1748329782309,4.58616408,174.24,174.14,0.79685011]
[1748329782514,4.52566408,174.23,174.14,0.79685011]
[1748329782814,5.7394,174.18,174.17,0.0399838]
[1748329783515,2.62061669,174.18,174.14,0.79685011]
[1748329783810,134.10039717,174.17,174.14,0.79685011]
[1748329784010,2.62039717,174.16,174.14,0.79685011]
[1748329784219,131.48,174.17,174.14,0.79685011]
[1748329784412,2.61874898,174.16,174.14,0.83651265]
[1748329784709,1.9101,174.16,174.14,0.03966254]
[1748329785317,5.7404,174.15,174.14,0.03966254]
[1748329787223,1.95182285,174.16,174.14,0.03966254]
[1748329788621,0.04172285,174.16,174.14,0.03966254]
[1748329789217,5.78202285,174.16,174.14,0.03966254]
[1748329790521,5.7404,174.15,174.14,0.03966254]
[1748329799924,5.78182285,174.16,174.14,0.03966254]
[1748329800230,0.04172285,174.16,174.14,0.03966254]
[1748329800529,5.7404,174.15,174.14,0.03966254]
[1748329802129,0.04172285,174.16,174.14,0.03966254]
[1748329802326,0.04172285,174.16,174.15,5.7404]
[1748329802529,0.04172285,174.16,174.15,114.7804]
[1748329809539,0.04172285,174.16,174.15,5.7404]
[1748329809738,0.04172285,174.16,174.15,114.7804]
[1748329818838,2.285e-05,174.16,174.15,114.7804]
[1748329823848,2.285e-05,174.16,174.15,5.7404]
[1748329824045,2.285e-05,174.16,174.15,114.7604]
[1748329831250,2.285e-05,174.16,174.15,5.7404]
[1748329832056,2.285e-05,174.16,174.14,5.78026254]
[1748329832355,2.285e-05,174.16,174.14,0.03966254]
[1748329832743,2.285e-05,174.16,174.1,1.21424428]
[1748329833453,130.94002285,174.16,174.08,130.94]
[1748329833655,2.61388593,174.15,174.1,0.03682305]
[1748329833952,2.65780547,174.14,174.04,132.15424428]
[1748329834155,5.7423,174.09,174.06,5.7432]
[1748329834758,5.7423,174.09,174.04,241.17424428]
[1748329834962,0.04304087,174.08,174.05,0.03949739]
[1748329835456,0.04304087,174.08,174.05,5.78299739]
[1748329835749,0.04304087,174.08,174.05,0.03949739]
[1748329836145,0.04304087,174.08,174.06,5.743]
[1748329837656,0.04304087,174.08,174.07,5.743]
[1748329838167,0.04304087,174.08,174.05,109.07949739]
[1748329838754,0.04304087,174.08,174.07,5.743]
[1748329840156,4.087e-05,174.08,174.07,5.743]
[1748329843561,4.087e-05,174.08,174.07,114.803]
[1748329844771,4.087e-05,174.08,174.07,5.743]
[1748329845066,4.087e-05,174.08,174.07,109.06]
[1748329846267,4.087e-05,174.08,174.05,0.03949739]
[1748329846468,4.087e-05,174.08,174.06,109.06]
[1748329847268,4.087e-05,174.08,174.07,5.743]
[1748329852472,4.087e-05,174.08,174.07,114.803]
[1748329852872,4.087e-05,174.08,174.07,5.743]
[1748329853170,4.087e-05,174.08,174.07,114.803]
[1748329856470,4.087e-05,174.08,174.07,5.743]
[1748329856668,4.087e-05,174.08,174.07,114.803]
[1748329857170,4.087e-05,174.08,174.06,109.08]
[1748329857769,4.087e-05,174.08,174.05,130.61949739]
[1748329857973,4.087e-05,174.08,174.06,109.08]
[1748329858271,4.087e-05,174.08,174.06,114.8231]
[1748329858472,4.087e-05,174.08,174.06,5.7431]
[1748329858771,5.74274087,174.08,174.05,245.44299739]
[1748329859369,5.74274087,174.08,174.05,5.78299739]
[1748329859769,5.74274087,174.08,174.05,114.86299739]
[1748329860066,5.743,174.07,174.05,109.11949739]
[1748329860574,5.74284087,174.08,174.05,114.86309739]
[1748329862975,4.087e-05,174.08,174.05,109.11949739]
[1748329863673,4.087e-05,174.08,174.07,5.743]
[1748329865777,4.087e-05,174.08,174.06,136.3232]
[1748329866178,4.087e-05,174.08,174.06,130.58]
[1748329867479,4.087e-05,174.08,174.07,5.743]
[1748329870379,4.087e-05,174.08,174.06,239.66]
[1748329870579,4.087e-05,174.08,174.05,0.03949739]
[1748329870779,4.087e-05,174.08,174.05,109.11949739]
[1748329870977,4.087e-05,174.08,174.05,0.03949739]
[1748329871184,4.087e-05,174.08,173.99,1.21424428]
[1748329871683,4.087e-05,174.08,174.0,114.8251]
[1748329871880,4.087e-05,174.08,174.0,109.08]
[1748329872184,5.744,174.04,174.01,5.7449]
[1748329872485,5.78182879,174.04,174.02,0.04341329]
[1748329872682,0.03782879,174.04,174.02,0.04341329]
[1748329872885,0.03782879,174.04,174.02,5.78801329]
[1748329873085,0.03782879,174.04,174.02,0.04341329]
[1748329875384,5.7443,174.03,174.02,0.04341329]
[1748329876385,0.03782879,174.04,174.02,0.04341329]
[1748329878188,5.78182879,174.04,174.02,0.04341329]
[1748329880192,5.7443,174.03,174.02,0.04341329]
[1748329880495,0.03782879,174.04,174.02,0.04341329]
[1748329880794,5.78192879,174.04,174.02,0.04341329]
[1748329880992,0.03782879,174.04,174.02,0.04341329]
[1748329881394,0.03782879,174.04,174.02,5.78811329]
[1748329882194,5.78182879,174.04,174.02,0.04341329]
[1748329883597,5.78182879,174.04,174.02,5.78801329]
[1748329885598,5.78182879,174.04,174.02,0.04341329]
[1748329885799,5.7443,174.03,174.02,0.04341329]
[1748329886897,5.78192879,174.04,174.02,0.04341329]
[1748329890497,5.78192879,174.04,174.02,5.78801329]
[1748329890700,0.03782879,174.04,174.02,0.04341329]
[1748329891097,0.03782879,174.04,174.03,5.7443]
[1748329892899,0.03782879,174.04,174.02,0.04341329]
[1748329893402,5.7443,174.03,174.02,0.04341329]
[1748329907124,0.03782879,174.04,174.02,0.04341329]
[1748329907125,5.78192879,174.04,174.02,0.04341329]
[1748329907320,0.03782879,174.04,174.02,0.04341329]
[1748329907719,0.03782879,174.04,174.02,5.78791329]
[1748329908625,0.03782879,174.04,174.03,5.7443]
[1748329909221,0.03782879,174.04,174.02,5.78791329]
[1748329909521,0.03782879,174.04,174.02,0.04341329]
[1748329909723,0.03782879,174.04,174.02,5.78791329]
[1748329910327,0.03782879,174.04,174.03,5.7443]
[1748329926434,0.03782879,174.04,174.02,109.14341329]
[1748329926628,0.03782879,174.04,174.02,0.04341329]
[1748329928434,0.03782879,174.04,174.03,5.7443]
[1748329929534,0.03782879,174.04,174.02,5.78791329]
[1748329930130,0.03782879,174.04,174.02,0.04341329]
[1748329930532,5.7443,174.03,174.02,0.04341329]
[1748329933937,5.78192879,174.04,174.02,0.04341329]
[1748329939841,5.7443,174.03,174.02,0.04341329]
[1748329941141,0.03782879,174.04,174.02,0.04341329]
[1748329942043,0.03782879,174.04,174.03,5.7443]
[1748329945346,0.03782879,174.04,174.02,5.78801329]
[1748329946642,5.7443,174.03,174.02,0.04341329]
[1748329946847,2.64218182,174.03,173.97,109.12]
[1748329947042,2.64218182,174.02,173.97,109.12]
[1748329947238,0.03782879,174.04,173.96,130.45791149]
[1748329947443,2.64325233,174.03,173.97,109.12]
[1748329947645,5.7455,174.0,173.97,114.8662]
[1748329947845,0.04325473,174.0,173.96,130.45791149]
[1748329948146,2.64183291,173.99,173.96,1.33791149]
[1748329948346,0.04325473,174.0,173.96,1.33791149]
[1748329948347,2.64183291,173.98,173.96,1.33791149]
[1748329948649,0.04325473,174.0,173.96,1.33791149]
[1748329948846,2.63927254,173.99,173.96,1.33791149]
[1748329949041,5.7458,173.99,173.96,1.33791149]
[1748329949351,5.7458,173.99,173.95,5.7467]
[1748329949746,0.04325473,174.0,173.94,109.12]
[1748329950350,0.04325473,174.0,173.97,5.746]
[1748329950949,0.04325473,174.0,173.98,5.746]
[1748329951247,0.04325473,174.0,173.95,109.12]
[1748329951647,0.04325473,174.0,173.99,5.7457]
[1748329953055,5.473e-05,174.0,173.99,5.7457]
[1748329960555,5.473e-05,174.0,173.98,5.7845453]
[1748329960858,5.473e-05,174.0,173.98,0.0386453]
[1748329962662,5.473e-05,174.0,173.99,5.7457]
[1748329967864,5.473e-05,174.0,173.98,0.0386453]
[1748329968263,5.473e-05,174.0,173.98,5.7844453]
[1748329969766,5.473e-05,174.0,173.99,5.7457]
[1748329977467,2.0193,174.1,173.99,5.7457]
[1748329977468,133.78773357,174.2,173.99,10.88773357]
[1748329977762,2.63943327,174.14,174.03,5.14773357]
[1748329977962,2.63943327,174.13,174.04,237.76]
[1748329978265,5.7409,174.14,174.04,237.76]
[1748329978466,0.03792754,174.11,174.07,0.03665576]
[1748329978667,0.03792754,174.11,174.1,5.742]
[1748329979769,0.03792754,174.11,174.09,5.7422]
[1748329980269,0.03792754,174.11,174.08,5.7426]
[1748329981067,0.03792754,174.11,174.09,5.7423]
[1748329982169,0.03792754,174.11,174.08,5.7426]
[1748329982371,0.03792754,174.11,174.07,0.03665576]
[1748329982870,5.77992754,174.11,174.07,5.77965576]
[1748329983564,5.742,174.1,174.07,5.77965576]
[1748329984466,0.03792754,174.11,174.07,0.03665576]
[1748329984670,2.0511,174.09,174.07,0.03665576]
[1748329984873,5.7427,174.08,174.07,0.03665576]
[1748329985465,7.7935,174.09,174.07,0.03665576]
[1748329986775,5.7427,174.08,174.07,0.03665576]
[1748329990470,5.744,174.04,174.01,128.62]
[1748329990676,5.14773357,174.08,174.0,5.7452]
[1748329990869,5.7443,174.03,174.0,5.7452]
[1748329991271,2.0511,174.09,173.99,128.62]
[1748329991572,0.03692957,174.06,174.02,0.02407482]
[1748329991977,0.03692957,174.06,174.03,5.7441]
[1748329992477,0.03692957,174.06,174.02,5.76867482]
[1748329992680,0.03692957,174.06,174.02,0.02407482]
[1748329993277,0.03692957,174.06,174.04,5.744]
[1748329993577,0.03692957,174.06,174.02,0.02407482]
[1748329993779,0.03692957,174.06,174.05,5.7437]
[1748329995680,0.03692957,174.06,174.04,5.7439]
[1748329996578,0.03692957,174.06,174.02,0.02407482]
[1748329996974,5.78032957,174.06,174.03,5.7442]
[1748329997377,0.03692957,174.06,174.02,0.02407482]
[1748329998282,0.03692957,174.06,174.04,5.744]
[1748329999178,0.03692957,174.06,174.05,5.7437]
[1748329999484,0.03692957,174.06,174.05,134.3837]
[1748330007082,0.03692957,174.06,174.05,5.7437]
[1748330007276,0.03692957,174.06,174.05,243.4837]
[1748330007785,0.03692957,174.06,174.05,134.4037]
[1748330008485,0.03692957,174.06,174.02,0.02407482]
[1748330008983,5.78042957,174.06,174.02,5.76857482]
[1748330009183,5.78042957,174.06,174.02,0.02407482]
[1748330009886,5.78042957,174.06,174.03,5.7441]
[1748330010385,0.03692957,174.06,174.03,5.7441]
[1748330010990,5.7443,174.03,174.02,0.02407482]
[1748330011292,2.12052957,174.06,173.95,1.33791149]
[1748330011482,5.7453,174.01,173.95,1.33791149]
[1748330011783,5.14773357,174.04,173.95,1.33791149]
[1748330011983,5.746,173.98,173.95,1.33791149]
[1748330012188,5.7887123,173.98,173.95,1.33791149]
[1748330012686,0.0427123,173.98,173.95,1.33791149]
[1748330012885,0.0427123,173.98,173.93,128.66]
[1748330013585,5.7888123,173.98,173.94,5.7471]
[1748330014291,5.7463,173.97,173.93,134.4076]
[1748330015781,5.7469,173.96,173.93,128.66]
[1748330017791,5.7469,173.96,173.93,134.4075]
[1748330020194,0.0427123,173.98,173.93,128.66]
[1748330020690,5.7465,173.97,173.93,134.4074]
[1748330020993,0.0427123,173.98,173.93,134.4074]
[1748330021393,5.7467,173.96,173.93,134.4074]
[1748330022594,0.0427123,173.98,173.93,128.66]
[1748330022790,5.8447,174.07,173.95,5.14773357]
[1748330022995,5.744,174.04,174.0,5.7451]
[1748330023197,5.8447,174.07,174.0,128.72]
[1748330023599,5.7437,174.05,174.01,5.7448]
[1748330023800,0.03718376,174.05,174.01,0.03819099]
[1748330025503,0.03718376,174.05,174.02,5.7444]
[1748330029412,0.03718376,174.05,174.03,5.7443]
[1748330034917,5.78098376,174.05,174.02,5.7446]
[1748330035314,0.03718376,174.05,174.01,0.03819099]
[1748330036019,0.03718376,174.05,174.03,5.7441]
[1748330037215,0.03718376,174.05,174.04,5.744]
[1748330042922,8.376e-05,174.05,174.04,5.744]
[1748330043117,5.7413,174.13,174.09,5.7422]
[1748330043317,3.8329,174.16,174.08,129.52]
[1748330043816,2.62619128,174.15,174.08,129.52]
[1748330044016,0.03778098,174.13,174.1,0.04376634]
[1748330044922,5.7417,174.11,174.1,0.04376634]
[1748330045815,5.7424,174.09,174.08,129.52]
[1748330047522,0.03778098,174.13,174.08,129.52]
[1748330049118,0.03778098,174.13,174.12,5.7414]
[1748330051326,0.03778098,174.13,174.12,114.8414]
[1748330052430,1.9723,174.21,174.16,5.7398]
[1748330052623,1.9723,174.21,174.16,135.2398]
[1748330053118,5.7393,174.19,174.16,135.2398]
[1748330053317,5.7393,174.19,174.16,135.28168498]
[1748330053318,5.77584058,174.19,174.16,135.28168498]
[1748330054829,5.7394,174.18,174.16,129.54188498]
[1748330055433,5.77574058,174.19,174.16,129.54188498]
[1748330055624,0.03654058,174.19,174.16,135.28188498]
[1748330055928,5.77584058,174.19,174.16,129.54188498]
[1748330056724,5.7395,174.18,174.16,129.54188498]
[1748330057730,5.77564058,174.19,174.16,135.28188498]
[1748330058831,0.03654058,174.19,174.17,5.7396]
[1748330059033,0.03654058,174.19,174.16,129.54188498]
[1748330059433,5.77584058,174.19,174.16,135.28178498]
[1748330063837,0.03654058,174.19,174.17,5.7395]
[1748330064241,0.03654058,174.19,174.16,129.54188498]
[1748330065738,5.77574058,174.19,174.16,129.54188498]
[1748330066139,0.03654058,174.19,174.16,129.54188498]
[1748330066332,0.03654058,174.19,174.18,5.7394]
[1748330068535,0.03654058,174.19,174.17,5.7396]
[1748330068943,0.03654058,174.19,174.18,5.7394]
[1748330073737,0.03654058,174.19,174.16,129.54188498]
[1748330073946,0.03654058,174.19,174.17,5.7397]
[1748330076841,0.03654058,174.19,174.16,0.04188498]
[1748330077044,0.03654058,174.19,174.16,128.46188498]
[1748330077546,5.7396,174.18,174.16,128.46188498]
[1748330078150,0.03654058,174.19,174.16,134.20188498]
[1748330078547,0.03654058,174.19,174.16,128.46188498]
[1748330079346,0.03654058,174.19,174.18,5.7394]
[1748330092883,0.03654058,174.19,174.17,5.7396]
[1748330093169,0.03654058,174.19,174.18,128.4]
[1748330095575,0.03654058,174.19,174.18,134.1394]
[1748330100874,4.0787,174.27,174.18,128.4]
[1748330101080,2.64584294,174.26,174.2,5.14773357]
[1748330101277,7.13440117,174.29,174.2,5.14773357]
[1748330101579,2.64588414,174.28,174.27,5.7364]
[1748330102880,2.64588414,174.28,174.26,128.30196028]
[1748330103082,0.03970755,174.29,174.26,128.30196028]
[1748330103681,0.03970755,174.29,174.26,134.03846028]
[1748330103980,5.77550755,174.29,174.26,134.03846028]
[1748330104781,0.03970755,174.29,174.27,5.7363]
[1748330105483,0.03970755,174.29,174.26,128.30196028]
[1748330105877,5.7364,174.27,174.26,0.04196028]
[1748330106080,2.6376526,174.27,174.24,128.24]
[1748330106280,1.9174,174.26,174.21,128.24]
[1748330106483,5.7382,174.22,174.21,128.24]
[1748330106684,1.9174,174.26,174.21,128.24]
[1748330106883,2.63723661,174.25,174.21,128.24]
[1748330107184,5.738,174.23,174.21,128.27684226]
[1748330109082,5.7381,174.22,174.21,128.27684226]
[1748330109582,5.7379,174.23,174.21,128.27684226]
[1748330109982,0.04012442,174.25,174.21,128.27684226]
[1748330110181,5.7381,174.22,174.21,128.27684226]
[1748330110986,5.7379,174.23,174.21,128.27684226]
[1748330111187,0.04012442,174.25,174.21,128.27684226]
[1748330111588,5.7381,174.22,174.21,128.27684226]
[1748330113194,5.7381,174.22,174.21,0.03684226]
[1748330113396,8.37442275,174.22,174.21,0.03684226]
[1748330113789,8.37450566,174.22,174.21,0.03684226]
[1748330115595,8.37448462,174.22,174.21,0.03684226]
[1748330115791,0.04012442,174.25,174.21,0.03684226]
[1748330115998,2.63658772,174.24,174.21,0.03684226]
[1748330116297,0.04012442,174.25,174.21,0.03684226]
[1748330116490,2.63668744,174.24,174.21,0.03684226]
[1748330116691,0.04012442,174.25,174.21,0.03684226]
[1748330118091,5.738,174.23,174.21,0.03684226]
[1748330120196,5.7381,174.22,174.21,0.03684226]